[Event "Live Chess"]
[Site "Chess.com"]
[Date "2023.05.21"]
[Round "-"]
[White "friarnator"]
[Black "Hacker_2009"]
[Result "1/2-1/2"]
[WhiteElo "2027"]
[BlackElo "1949"]
[TimeControl "300"]
[EndTime "8:20:20 PDT"]
[Termination "Game drawn by stalemate"]

1. e4 {[%clk 0:04:57.7]} 1... c5 {[%clk 0:04:59]} 2. d4 {[%clk 0:04:56.5]} 2...
cxd4 {[%clk 0:04:56.3]} 3. c3 {[%clk 0:04:56.2]} 3... d6 {[%clk 0:04:55.5]} 4.
Nf3 {[%clk 0:04:54.9]} 4... dxc3 {[%clk 0:04:54.5]} 5. Nxc3 {[%clk 0:04:54.8]}
5... Nf6 {[%clk 0:04:53.6]} 6. Bc4 {[%clk 0:04:54]} 6... Nc6 {[%clk 0:04:52.2]}
7. O-O {[%clk 0:04:53.3]} 7... e6 {[%clk 0:04:50.1]} 8. Qe2 {[%clk 0:04:51.9]}
8... Be7 {[%clk 0:04:49.1]} 9. Rd1 {[%clk 0:04:51.3]} 9... O-O {[%clk
0:04:48.7]} 10. e5 {[%clk 0:04:49.7]} 10... Nd5 {[%clk 0:04:45.3]} 11. Nxd5
{[%clk 0:04:39.4]} 11... exd5 {[%clk 0:04:44]} 12. Bxd5 {[%clk 0:04:39.3]} 12...
Qc7 {[%clk 0:04:39.5]} 13. Bf4 {[%clk 0:04:29.9]} 13... dxe5 {[%clk 0:04:34.4]}
14. Nxe5 {[%clk 0:04:27.6]} 14... Nxe5 {[%clk 0:04:29.2]} 15. Bxe5 {[%clk
0:04:25.4]} 15... Qb6 {[%clk 0:04:27.2]} 16. Bxg7 {[%clk 0:04:00.1]} 16... Kxg7
{[%clk 0:04:24.8]} 17. Qxe7 {[%clk 0:03:59.3]} 17... Qxb2 {[%clk 0:04:21]} 18.
Qg5+ {[%clk 0:03:51.8]} 18... Kh8 {[%clk 0:04:16.1]} 19. Rab1 {[%clk 0:03:51.2]}
19... Qg7 {[%clk 0:04:14.3]} 20. Qh4 {[%clk 0:03:45.4]} 20... Be6 {[%clk
0:04:04.8]} 21. Bxb7 {[%clk 0:03:27.4]} 21... Rab8 {[%clk 0:03:57.8]} 22. Be4
{[%clk 0:03:26.3]} 22... Bxa2 {[%clk 0:03:49.1]} 23. Rxb8 {[%clk 0:02:40.4]}
23... Rxb8 {[%clk 0:03:42.9]} 24. Rd8+ {[%clk 0:02:39.8]} 24... Rxd8 {[%clk
0:03:38]} 25. Qxd8+ {[%clk 0:02:39.7]} 25... Qg8 {[%clk 0:03:37.2]} 26. Qa5
{[%clk 0:01:39.4]} 26... Be6 {[%clk 0:03:25]} 27. Qe5+ {[%clk 0:01:37.3]} 27...
Qg7 {[%clk 0:03:21.8]} 28. Qb8+ {[%clk 0:01:36.9]} 28... Qg8 {[%clk 0:03:20.7]}
29. Qxa7 {[%clk 0:01:36.8]} 29... Qc8 {[%clk 0:03:17.5]} 30. Qd4+ {[%clk
0:01:33.7]} 30... Kg8 {[%clk 0:03:15.8]} 31. h3 {[%clk 0:01:33.6]} 31... Qc1+
{[%clk 0:03:11.6]} 32. Kh2 {[%clk 0:01:33.2]} 32... Qc7+ {[%clk 0:03:10.3]} 33.
g3 {[%clk 0:01:32.2]} 33... Qc8 {[%clk 0:03:09.9]} 34. h4 {[%clk 0:01:28.7]}
34... Qb8 {[%clk 0:02:55.4]} 35. Qd3 {[%clk 0:01:24.6]} 35... Qb2 {[%clk
0:02:42.5]} 36. Qe3 {[%clk 0:01:18]} 36... Qf6 {[%clk 0:02:34.8]} 37. Qg5+
{[%clk 0:01:13.5]} 37... Qxg5 {[%clk 0:02:30.9]} 38. hxg5 {[%clk 0:01:13.4]}
38... Kg7 {[%clk 0:02:29.8]} 39. f4 {[%clk 0:01:12.9]} 39... f6 {[%clk
0:02:26.1]} 40. gxf6+ {[%clk 0:01:06.8]} 40... Kg8 {[%clk 0:02:12.7]} 41. f5
{[%clk 0:00:58.4]} 41... Bb3 {[%clk 0:02:08.3]} 42. g4 {[%clk 0:00:56.9]} 42...
h6 {[%clk 0:02:05.9]} 43. Kg3 {[%clk 0:00:52.6]} 43... Kf7 {[%clk 0:02:05.3]}
44. Kh4 {[%clk 0:00:51.8]} 44... Kxf6 {[%clk 0:02:01.7]} 45. Bf3 {[%clk
0:00:46.6]} 45... Bf7 {[%clk 0:01:58.8]} 46. Bd1 {[%clk 0:00:40.9]} 46... Be8
{[%clk 0:01:54.4]} 47. Kg3 {[%clk 0:00:39.4]} 47... Kg5 {[%clk 0:01:52.6]} 48.
Bf3 {[%clk 0:00:38.5]} 48... Ba4 {[%clk 0:01:49]} 49. Kf2 {[%clk 0:00:35.3]}
49... Bb3 {[%clk 0:01:45.7]} 50. Ke3 {[%clk 0:00:34.6]} 50... Bc2 {[%clk
0:01:41.4]} 51. Kd4 {[%clk 0:00:33.6]} 51... Bb3 {[%clk 0:01:37.7]} 52. Ke5
{[%clk 0:00:32.7]} 52... Ba2 {[%clk 0:01:36.5]} 53. Bd5 {[%clk 0:00:31.7]} 53...
Bb1 {[%clk 0:01:02.4]} 54. f6 {[%clk 0:00:30.2]} 54... Bg6 {[%clk 0:00:59.4]}
55. Bf3 {[%clk 0:00:26.3]} 55... Bf7 {[%clk 0:00:52.6]} 56. Be2 {[%clk
0:00:25.4]} 56... Ba2 {[%clk 0:00:45.4]} 57. Bd1 {[%clk 0:00:17.9]} 57... Bf7
{[%clk 0:00:43.9]} 58. Bf3 {[%clk 0:00:16.8]} 58... Bb3 {[%clk 0:00:41.2]} 59.
Bd5 {[%clk 0:00:16]} 59... Bxd5 {[%clk 0:00:39]} 60. Kxd5 {[%clk 0:00:15.6]}
60... Kxf6 {[%clk 0:00:38.6]} 61. Ke4 {[%clk 0:00:15]} 61... Kg5 {[%clk
0:00:36.6]} 62. Kf3 {[%clk 0:00:14.6]} 62... Kg6 {[%clk 0:00:35.1]} 63. Kg3
{[%clk 0:00:13.6]} 63... Kg5 {[%clk 0:00:33.7]} 64. Kh3 {[%clk 0:00:13.5]} 64...
Kf6 {[%clk 0:00:31.5]} 65. Kh2 {[%clk 0:00:13.4]} 65... Kg5 {[%clk 0:00:29.9]}
66. Kh1 {[%clk 0:00:13.3]} 66... Kxg4 {[%clk 0:00:28.8]} 67. Kg1 {[%clk
0:00:13.2]} 67... Kf4 {[%clk 0:00:28.3]} 68. Kh1 {[%clk 0:00:13.1]} 68... Ke5
{[%clk 0:00:27.9]} 69. Kg1 {[%clk 0:00:13]} 69... Kf5 {[%clk 0:00:27.8]} 70. Kh1
{[%clk 0:00:12.9]} 70... Kf6 {[%clk 0:00:27.5]} 71. Kg1 {[%clk 0:00:12.8]} 71...
Kg5 {[%clk 0:00:27.4]} 72. Kh1 {[%clk 0:00:12.7]} 72... Kf5 {[%clk 0:00:27.1]}
73. Kg1 {[%clk 0:00:12.6]} 73... Kg4 {[%clk 0:00:27]} 74. Kh1 {[%clk 0:00:12.5]}
74... Kg3 {[%clk 0:00:26.7]} 75. Kg1 {[%clk 0:00:12.4]} 75... h5 {[%clk
0:00:26.1]} 76. Kh1 {[%clk 0:00:12.3]} 76... Kg4 {[%clk 0:00:25.9]} 77. Kg1
{[%clk 0:00:12.2]} 77... Kf4 {[%clk 0:00:25.8]} 78. Kh1 {[%clk 0:00:12.1]} 78...
Kg5 {[%clk 0:00:25.7]} 79. Kg1 {[%clk 0:00:12]} 79... Kh6 {[%clk 0:00:25.6]} 80.
Kh1 {[%clk 0:00:11.9]} 80... Kg6 {[%clk 0:00:25.5]} 81. Kg1 {[%clk 0:00:11.8]}
81... Kg5 {[%clk 0:00:25.4]} 82. Kh1 {[%clk 0:00:11.7]} 82... Kg4 {[%clk
0:00:25.3]} 83. Kg1 {[%clk 0:00:11.6]} 83... h4 {[%clk 0:00:25.1]} 84. Kh1
{[%clk 0:00:11.5]} 84... h3 {[%clk 0:00:25]} 85. Kg1 {[%clk 0:00:11.4]} 85...
Kg3 {[%clk 0:00:24.9]} 86. Kh1 {[%clk 0:00:11.3]} 86... h2 {[%clk 0:00:24.8]}
1/2-1/2

[Event "Live Chess"]
[Site "Chess.com"]
[Date "2023.05.21"]
[Round "-"]
[White "SavagePawn7"]
[Black "CheckThis4"]
[Result "0-1"]
[WhiteElo "777"]
[BlackElo "2531"]
[TimeControl "300"]
[EndTime "8:20:29 PDT"]
[Termination "CheckThis4 won by checkmate"]

1. e4 {[%clk 0:04:54.1]} 1... d5 {[%clk 0:04:59.1]} 2. Nc3 {[%clk 0:04:50.3]}
2... Nf6 {[%clk 0:04:55.5]} 3. exd5 {[%clk 0:04:42.2]} 3... c6 {[%clk
0:04:54.2]} 4. dxc6 {[%clk 0:04:30.4]} 4... Nxc6 {[%clk 0:04:54.1]} 5. Qe2
{[%clk 0:04:24]} 5... e5 {[%clk 0:04:52.6]} 6. Nf3 {[%clk 0:04:22.6]} 6... Bg4
{[%clk 0:04:49.6]} 7. h3 {[%clk 0:04:19.2]} 7... Bxf3 {[%clk 0:04:41.9]} 8. Qxf3
{[%clk 0:04:16.5]} 8... Bc5 {[%clk 0:04:40.5]} 9. d3 {[%clk 0:04:12.8]} 9... Nd4
{[%clk 0:04:37.4]} 10. Qd1 {[%clk 0:04:04]} 10... O-O {[%clk 0:04:36]} 11. Be3
{[%clk 0:04:00.3]} 11... Rc8 {[%clk 0:04:29.2]} 12. Bxd4 {[%clk 0:03:59]} 12...
exd4 {[%clk 0:04:26.7]} 13. Ne4 {[%clk 0:03:53.3]} 13... Re8 {[%clk 0:04:25]}
14. f3 {[%clk 0:03:47.2]} 14... Nd5 {[%clk 0:04:23.2]} 15. Be2 {[%clk
0:03:26.1]} 15... Ne3 {[%clk 0:04:14.1]} 16. Qc1 {[%clk 0:03:18.6]} 16... Bb4+
{[%clk 0:04:11]} 17. c3 {[%clk 0:03:14.2]} 17... f5 {[%clk 0:03:51]} 18. Ng3
{[%clk 0:03:01.7]} 18... Qh4 {[%clk 0:03:47.6]} 19. Kf2 {[%clk 0:02:56.8]} 19...
f4 {[%clk 0:03:46.2]} 20. cxb4 {[%clk 0:02:40.9]} 20... Qxg3+ {[%clk 0:03:44.4]}
21. Kg1 {[%clk 0:02:38.6]} 21... Qxg2# {[%clk 0:03:43.5]} 0-1

[Event "Live Chess"]
[Site "Chess.com"]
[Date "2023.05.21"]
[Round "-"]
[White "nigelst"]
[Black "MarkLim1"]
[Result "1-0"]
[WhiteElo "1709"]
[BlackElo "1725"]
[TimeControl "300"]
[EndTime "8:20:49 PDT"]
[Termination "nigelst won on time"]

1. e4 {[%clk 0:04:57.1]} 1... c6 {[%clk 0:04:59.3]} 2. d4 {[%clk 0:04:55.8]}
2... d5 {[%clk 0:04:58.7]} 3. exd5 {[%clk 0:04:54.8]} 3... cxd5 {[%clk 0:04:58]}
4. Bd3 {[%clk 0:04:53.7]} 4... Nc6 {[%clk 0:04:56.3]} 5. c3 {[%clk 0:04:51.8]}
5... Qc7 {[%clk 0:04:55.7]} 6. Ne2 {[%clk 0:04:49.7]} 6... Bg4 {[%clk
0:04:52.4]} 7. f3 {[%clk 0:04:47.6]} 7... Bh5 {[%clk 0:04:50.2]} 8. Bf4 {[%clk
0:04:45.6]} 8... Qd7 {[%clk 0:04:49.5]} 9. O-O {[%clk 0:04:43.2]} 9... e6 {[%clk
0:04:47.9]} 10. Nd2 {[%clk 0:04:32.8]} 10... Bd6 {[%clk 0:04:44.9]} 11. Bxd6
{[%clk 0:04:30.6]} 11... Qxd6 {[%clk 0:04:44]} 12. Ng3 {[%clk 0:04:29.2]} 12...
Bg6 {[%clk 0:04:42.7]} 13. Qc2 {[%clk 0:04:26.6]} 13... Bxd3 {[%clk 0:04:40.6]}
14. Qxd3 {[%clk 0:04:25.1]} 14... Nf6 {[%clk 0:04:30.8]} 15. Qe3 {[%clk
0:04:18.9]} 15... O-O {[%clk 0:04:29.2]} 16. Qg5 {[%clk 0:04:11.1]} 16... b5
{[%clk 0:04:25]} 17. Nh5 {[%clk 0:04:08.3]} 17... Nxh5 {[%clk 0:04:23.7]} 18.
Qxh5 {[%clk 0:04:06.4]} 18... b4 {[%clk 0:04:22.8]} 19. f4 {[%clk 0:04:02.9]}
19... bxc3 {[%clk 0:04:21.6]} 20. bxc3 {[%clk 0:04:01.3]} 20... g6 {[%clk
0:04:15.9]} 21. Qh6 {[%clk 0:03:59.1]} 21... Rfc8 {[%clk 0:04:13.4]} 22. Nf3
{[%clk 0:03:57.1]} 22... Qf8 {[%clk 0:04:12.3]} 23. Qg5 {[%clk 0:03:51.7]} 23...
Qe7 {[%clk 0:04:09.6]} 24. Qg3 {[%clk 0:03:47.3]} 24... Rab8 {[%clk 0:04:06.4]}
25. Rab1 {[%clk 0:03:45.2]} 25... Rxb1 {[%clk 0:04:03.5]} 26. Rxb1 {[%clk
0:03:43.4]} 26... Na5 {[%clk 0:04:02.4]} 27. Ne5 {[%clk 0:03:40.5]} 27... Nc4
{[%clk 0:03:56.1]} 28. Nxc4 {[%clk 0:03:35.9]} 28... Rxc4 {[%clk 0:03:52.7]} 29.
Rb8+ {[%clk 0:03:26]} 29... Kg7 {[%clk 0:03:51.3]} 30. h4 {[%clk 0:03:19.9]}
30... h5 {[%clk 0:03:48.1]} 31. Qe3 {[%clk 0:03:03.2]} 31... Qxh4 {[%clk
0:03:40.8]} 32. Rb7 {[%clk 0:02:49.3]} 32... Ra4 {[%clk 0:03:29.1]} 33. g3
{[%clk 0:02:18.4]} 33... Qf6 {[%clk 0:03:25.9]} 34. Rb2 {[%clk 0:02:10.6]} 34...
a5 {[%clk 0:03:17.1]} 35. Qe2 {[%clk 0:01:55.1]} 35... Rc4 {[%clk 0:03:11.9]}
36. Qd3 {[%clk 0:01:45.7]} 36... Qf5 {[%clk 0:02:56.2]} 37. Qxf5 {[%clk
0:01:43.4]} 37... gxf5 {[%clk 0:02:53.3]} 38. Rc2 {[%clk 0:01:40.5]} 38... Kf8
{[%clk 0:02:44]} 39. Kg2 {[%clk 0:01:39.3]} 39... Kg7 {[%clk 0:02:42.5]} 40. Kh3
{[%clk 0:01:38.1]} 40... Kg6 {[%clk 0:02:41.9]} 41. Kh4 {[%clk 0:01:34.8]} 41...
Ra4 {[%clk 0:02:36.1]} 42. Kh3 {[%clk 0:01:30]} 42... Rc4 {[%clk 0:02:32.4]} 43.
Kg2 {[%clk 0:01:26.9]} 43... Rc7 {[%clk 0:02:28.7]} 44. Kf3 {[%clk 0:01:22.9]}
44... Rb7 {[%clk 0:02:26.9]} 45. c4 {[%clk 0:01:18.2]} 45... dxc4 {[%clk
0:02:23]} 46. Rxc4 {[%clk 0:01:16.4]} 46... Rb2 {[%clk 0:02:22]} 47. Ra4 {[%clk
0:01:13.7]} 47... Rb5 {[%clk 0:02:17.5]} 48. Ke3 {[%clk 0:01:12]} 48... Kf6
{[%clk 0:02:16.3]} 49. Kd3 {[%clk 0:01:09.1]} 49... Ke7 {[%clk 0:02:15.4]} 50.
Kc4 {[%clk 0:01:07.5]} 50... Rd5 {[%clk 0:02:09.8]} 51. Ra3 {[%clk 0:01:04.5]}
51... Kd7 {[%clk 0:02:05]} 52. Rb3 {[%clk 0:01:02.4]} 52... Kc7 {[%clk
0:02:02.9]} 53. a3 {[%clk 0:00:50.2]} 53... Rd6 {[%clk 0:01:57.8]} 54. Rb5
{[%clk 0:00:40.5]} 54... Ra6 {[%clk 0:01:53.9]} 55. a4 {[%clk 0:00:38.2]} 55...
Rc6+ {[%clk 0:01:13.6]} 56. Kd3 {[%clk 0:00:35.8]} 56... Ra6 {[%clk 0:01:11]}
57. d5 {[%clk 0:00:30.4]} 57... exd5 {[%clk 0:00:58.9]} 58. Kd4 {[%clk
0:00:28.8]} 58... Kd6 {[%clk 0:00:42.1]} 59. Rxd5+ {[%clk 0:00:27]} 59... Ke6
{[%clk 0:00:40.6]} 60. Re5+ {[%clk 0:00:22.9]} 60... Kf6 {[%clk 0:00:37.3]} 61.
Rb5 {[%clk 0:00:20.7]} 61... Kg6 {[%clk 0:00:34.4]} 62. Kc5 {[%clk 0:00:18.7]}
62... Re6 {[%clk 0:00:29]} 63. Rb6 {[%clk 0:00:17.1]} 63... Kf6 {[%clk
0:00:19.3]} 64. Rxe6+ {[%clk 0:00:15.2]} 64... Kxe6 {[%clk 0:00:18.5]} 65. Kb5
{[%clk 0:00:15.1]} 65... Kd6 {[%clk 0:00:17.7]} 66. Kxa5 {[%clk 0:00:14.1]}
66... Kc6 {[%clk 0:00:16.5]} 67. Ka6 {[%clk 0:00:13]} 67... Kc7 {[%clk
0:00:15.2]} 68. Kb5 {[%clk 0:00:11.8]} 68... Kd7 {[%clk 0:00:11.3]} 69. Kc5
{[%clk 0:00:10.6]} 69... Kc7 {[%clk 0:00:10]} 70. Kd5 {[%clk 0:00:09.6]} 70...
Kb6 {[%clk 0:00:09.4]} 71. Ke5 {[%clk 0:00:08.7]} 71... Ka5 {[%clk 0:00:09.3]}
72. Kxf5 {[%clk 0:00:08.5]} 72... Kxa4 {[%clk 0:00:08.3]} 73. Kf6 {[%clk
0:00:07.7]} 73... Kb5 {[%clk 0:00:08.2]} 74. Kxf7 {[%clk 0:00:06.9]} 74... Kc6
{[%clk 0:00:08.1]} 75. Kg6 {[%clk 0:00:06.6]} 75... Kd7 {[%clk 0:00:07.2]} 76.
Kxh5 {[%clk 0:00:06.5]} 76... Ke6 {[%clk 0:00:06.5]} 77. g4 {[%clk 0:00:06.4]}
77... Kf7 {[%clk 0:00:05.9]} 78. Kh6 {[%clk 0:00:06.3]} 78... Kf6 {[%clk
0:00:05.1]} 79. g5+ {[%clk 0:00:06.2]} 79... Kf7 {[%clk 0:00:04.6]} 80. g6+
{[%clk 0:00:06.1]} 80... Kg8 {[%clk 0:00:03.8]} 81. g7 {[%clk 0:00:05.3]} 81...
Kf7 {[%clk 0:00:00.8]} 82. Kh7 {[%clk 0:00:05.2]} 82... Kf6 {[%clk 0:00:00.4]}
83. g8=Q {[%clk 0:00:04.4]} 83... Kf5 {[%clk 0:00:00.3]} 84. Qg6+ {[%clk
0:00:03.7]} 84... Kxf4 {[%clk 0:00:00.2]} 85. Qf6+ {[%clk 0:00:03.1]} 1-0

[Event "Live Chess"]
[Site "Chess.com"]
[Date "2023.05.21"]
[Round "-"]
[White "romchyk1219"]
[Black "manthanit"]
[Result "1-0"]
[WhiteElo "663"]
[BlackElo "1087"]
[TimeControl "300"]
[EndTime "8:20:50 PDT"]
[Termination "romchyk1219 won on time"]

1. e4 {[%clk 0:04:58.5]} 1... e6 {[%clk 0:04:59.3]} 2. d4 {[%clk 0:04:55.1]}
2... d5 {[%clk 0:04:58.7]} 3. e5 {[%clk 0:04:52.4]} 3... c5 {[%clk 0:04:57.7]}
4. Nf3 {[%clk 0:04:50.2]} 4... Qb6 {[%clk 0:04:54.9]} 5. Bd3 {[%clk 0:04:44]}
5... Nc6 {[%clk 0:04:52.6]} 6. dxc5 {[%clk 0:04:38.2]} 6... Bxc5 {[%clk
0:04:50.4]} 7. O-O {[%clk 0:04:35.5]} 7... Nge7 {[%clk 0:04:47.1]} 8. Bf4 {[%clk
0:04:33.8]} 8... Nf5 {[%clk 0:04:45.1]} 9. Nc3 {[%clk 0:04:31.7]} 9... a6 {[%clk
0:04:30.9]} 10. Bxf5 {[%clk 0:04:30.3]} 10... exf5 {[%clk 0:04:29.4]} 11. Nxd5
{[%clk 0:04:23.4]} 11... Qd8 {[%clk 0:03:29.6]} 12. Nc3 {[%clk 0:04:09.9]} 12...
Qxd1 {[%clk 0:03:27.5]} 13. Nxd1 {[%clk 0:04:05.5]} 13... O-O {[%clk 0:03:26.8]}
14. Re1 {[%clk 0:03:56]} 14... Be6 {[%clk 0:03:25.1]} 15. Ne3 {[%clk 0:03:53.2]}
15... Rad8 {[%clk 0:03:14.6]} 16. Rad1 {[%clk 0:03:41.4]} 16... Bxa2 {[%clk
0:03:11.5]} 17. Rxd8 {[%clk 0:03:36.4]} 17... Rxd8 {[%clk 0:03:10.3]} 18. b3
{[%clk 0:03:32]} 18... Bxe3 {[%clk 0:03:03.4]} 19. fxe3 {[%clk 0:03:27.7]} 19...
Nb4 {[%clk 0:03:02.1]} 20. Ra1 {[%clk 0:03:19.3]} 20... Nxc2 {[%clk 0:02:13.7]}
21. Rxa2 {[%clk 0:03:15.6]} 21... Rd1+ {[%clk 0:02:10.8]} 22. Kf2 {[%clk
0:03:13.1]} 22... Nb4 {[%clk 0:02:06.4]} 23. Re2 {[%clk 0:03:00.2]} 23... Nd3+
{[%clk 0:02:00.1]} 24. Kg3 {[%clk 0:02:53.1]} 24... h6 {[%clk 0:01:54.2]} 25. e4
{[%clk 0:02:42.9]} 25... g5 {[%clk 0:01:49.8]} 26. Bd2 {[%clk 0:02:29.7]} 26...
h5 {[%clk 0:01:09.3]} 27. Nxg5 {[%clk 0:02:19.7]} 27... f4+ {[%clk 0:00:49.6]}
28. Bxf4 {[%clk 0:02:12]} 28... Rf1 {[%clk 0:00:45.8]} 29. Be3 {[%clk
0:02:01.9]} 29... Nxe5 {[%clk 0:00:41.8]} 30. Rf2 {[%clk 0:01:55.3]} 30... Rb1
{[%clk 0:00:38.7]} 31. Rf5 {[%clk 0:01:49.7]} 31... Ng6 {[%clk 0:00:32.4]} 32.
Rxf7 {[%clk 0:01:46.8]} 32... Rxb3 {[%clk 0:00:30.9]} 33. Rf3 {[%clk 0:01:35.8]}
33... Ne5 {[%clk 0:00:21.9]} 34. Rf5 {[%clk 0:01:26.7]} 34... Rxe3+ {[%clk
0:00:17.2]} 35. Kf4 {[%clk 0:01:22.3]} 35... Re1 {[%clk 0:00:09.7]} 36. Rxe5
{[%clk 0:01:15.9]} 36... Rg1 {[%clk 0:00:08.9]} 37. Re8+ {[%clk 0:01:05.3]}
37... Kg7 {[%clk 0:00:07.7]} 38. Re7+ {[%clk 0:01:03.7]} 38... Kg6 {[%clk
0:00:06.6]} 39. Rxb7 {[%clk 0:00:59.3]} 39... Rf1+ {[%clk 0:00:05.3]} 40. Ke5
{[%clk 0:00:56.1]} 40... Kxg5 {[%clk 0:00:04.6]} 41. Rg7+ {[%clk 0:00:48]} 41...
Kh6 {[%clk 0:00:03.1]} 42. Ra7 {[%clk 0:00:39.9]} 42... Kg5 {[%clk 0:00:02.4]}
43. Rxa6 {[%clk 0:00:35.8]} 43... Rf2 {[%clk 0:00:01.8]} 44. Rg6+ {[%clk
0:00:32.8]} 44... Kxg6 {[%clk 0:00:00.1]} 45. Kd5 {[%clk 0:00:28.5]} 1-0

[Event "Live Chess"]
[Site "Chess.com"]
[Date "2023.05.21"]
[Round "-"]
[White "ramses-IIG"]
[Black "HonestJoe1"]
[Result "0-1"]
[WhiteElo "873"]
[BlackElo "2098"]
[TimeControl "300"]
[EndTime "8:20:54 PDT"]
[Termination "HonestJoe1 won by resignation"]

1. e4 {[%clk 0:04:58.3]} 1... c5 {[%clk 0:04:56.6]} 2. Nf3 {[%clk 0:04:58.2]}
2... Nc6 {[%clk 0:04:55.3]} 3. Bc4 {[%clk 0:04:56.6]} 3... g6 {[%clk 0:04:54.1]}
4. d3 {[%clk 0:04:55.1]} 4... Bg7 {[%clk 0:04:52.7]} 5. Ng5 {[%clk 0:04:52.5]}
5... e6 {[%clk 0:04:49.3]} 6. c3 {[%clk 0:04:50.2]} 6... d5 {[%clk 0:04:44.8]}
7. exd5 {[%clk 0:04:50.1]} 7... exd5 {[%clk 0:04:43.6]} 8. Bb3 {[%clk
0:04:47.5]} 8... Qe7+ {[%clk 0:04:39]} 9. Kf1 {[%clk 0:04:18.8]} 9... Nf6 {[%clk
0:04:34.5]} 10. Ba4 {[%clk 0:03:52]} 10... O-O {[%clk 0:04:30.5]} 11. Bxc6
{[%clk 0:03:48.5]} 11... bxc6 {[%clk 0:04:29.5]} 12. Nf3 {[%clk 0:03:42]} 12...
Ba6 {[%clk 0:04:10.1]} 13. Na3 {[%clk 0:03:20.5]} 13... Qe4 {[%clk 0:04:01.7]}
14. Kg1 {[%clk 0:02:50.8]} 14... Qxd3 {[%clk 0:03:58.6]} 15. Qxd3 {[%clk
0:02:47.3]} 15... Bxd3 {[%clk 0:03:57.4]} 16. Ne5 {[%clk 0:02:39.7]} 16... Rfe8
{[%clk 0:03:49.1]} 17. Nxd3 {[%clk 0:02:34.1]} 17... c4 {[%clk 0:03:46.7]} 18.
g3 {[%clk 0:02:20.1]} 18... cxd3 {[%clk 0:03:44.8]} 19. Kg2 {[%clk 0:02:19.3]}
19... Re2 {[%clk 0:03:41.3]} 20. c4 {[%clk 0:02:01.1]} 20... d2 {[%clk
0:03:38.5]} 21. Bxd2 {[%clk 0:01:47.1]} 21... Rxd2 {[%clk 0:03:36.7]} 22. cxd5
{[%clk 0:01:44.7]} 22... cxd5 {[%clk 0:03:34.6]} 23. Nb5 {[%clk 0:01:43]} 23...
Rxb2 {[%clk 0:03:31.5]} 24. Nc7 {[%clk 0:01:39.3]} 24... Rd8 {[%clk 0:03:29.5]}
25. a4 {[%clk 0:01:34.7]} 25... Ne4 {[%clk 0:03:26.4]} 26. Rhf1 {[%clk
0:01:25.6]} 26... Rxf2+ {[%clk 0:03:17.3]} 27. Rxf2 {[%clk 0:01:23.6]} 27...
Bxa1 {[%clk 0:03:15.9]} 28. Rf1 {[%clk 0:01:16]} 28... Bg7 {[%clk 0:03:10.8]}
29. Rd1 {[%clk 0:01:13.3]} 29... d4 {[%clk 0:03:09.3]} 30. Nb5 {[%clk
0:01:08.5]} 30... a6 {[%clk 0:03:04.9]} 31. Nxd4 {[%clk 0:01:06.8]} 31... Rxd4
{[%clk 0:03:03]} 32. Rxd4 {[%clk 0:01:05.3]} 32... Bxd4 {[%clk 0:03:01.8]} 33.
Kf3 {[%clk 0:01:05.2]} 33... Nc5 {[%clk 0:02:58.3]} 34. Ke2 {[%clk 0:01:03.3]}
34... Nxa4 {[%clk 0:02:57]} 0-1

[Event "Live Chess"]
[Site "Chess.com"]
[Date "2023.05.21"]
[Round "-"]
[White "BillythekidFellowes"]
[Black "JoshMcK"]
[Result "1-0"]
[WhiteElo "2122"]
[BlackElo "1573"]
[TimeControl "300"]
[EndTime "8:20:59 PDT"]
[Termination "BillythekidFellowes won by checkmate"]

1. e4 {[%clk 0:04:58.3]} 1... c6 {[%clk 0:04:58.4]} 2. Nc3 {[%clk 0:04:57]} 2...
d5 {[%clk 0:04:58.3]} 3. d4 {[%clk 0:04:56.3]} 3... dxe4 {[%clk 0:04:57]} 4.
Nxe4 {[%clk 0:04:56.2]} 4... Nf6 {[%clk 0:04:56.4]} 5. Nxf6+ {[%clk 0:04:55.3]}
5... exf6 {[%clk 0:04:56.3]} 6. Nf3 {[%clk 0:04:55.2]} 6... Bd6 {[%clk
0:04:55.9]} 7. Bd3 {[%clk 0:04:54.2]} 7... O-O {[%clk 0:04:53.9]} 8. c3 {[%clk
0:04:53.4]} 8... Re8+ {[%clk 0:04:51.5]} 9. Be3 {[%clk 0:04:52.4]} 9... Bf4
{[%clk 0:04:48.6]} 10. Kf1 {[%clk 0:04:51.7]} 10... Bxe3 {[%clk 0:04:46.9]} 11.
fxe3 {[%clk 0:04:51.6]} 11... Qe7 {[%clk 0:04:42.7]} 12. e4 {[%clk 0:04:49.5]}
12... Bg4 {[%clk 0:04:37.1]} 13. Qd2 {[%clk 0:04:44]} 13... Bxf3 {[%clk
0:04:35.7]} 14. gxf3 {[%clk 0:04:43.9]} 14... Nd7 {[%clk 0:04:31.8]} 15. Rg1
{[%clk 0:04:41]} 15... Nf8 {[%clk 0:04:29.1]} 16. Rg3 {[%clk 0:04:38.5]} 16...
Qd6 {[%clk 0:04:15]} 17. Kf2 {[%clk 0:04:36.8]} 17... Ng6 {[%clk 0:04:05]} 18.
h4 {[%clk 0:04:34.7]} 18... Nf4 {[%clk 0:03:50.3]} 19. Bc4 {[%clk 0:04:31.4]}
19... Nh5 {[%clk 0:03:46.2]} 20. Rg2 {[%clk 0:04:25.7]} 20... b5 {[%clk
0:03:38.5]} 21. Bb3 {[%clk 0:04:20.5]} 21... a5 {[%clk 0:03:37.1]} 22. a3 {[%clk
0:04:17.7]} 22... a4 {[%clk 0:03:19.2]} 23. Ba2 {[%clk 0:04:15.8]} 23... Nf4
{[%clk 0:03:11.5]} 24. Rg4 {[%clk 0:04:08.8]} 24... Nh5 {[%clk 0:03:00.9]} 25.
Qh6 {[%clk 0:04:05.5]} 25... Qh2+ {[%clk 0:02:51.6]} 26. Ke3 {[%clk 0:04:03.5]}
26... Qxb2 {[%clk 0:02:10.3]} 27. Qxh5 {[%clk 0:04:01.4]} 27... Qxc3+ {[%clk
0:02:09.3]} 28. Kf4 {[%clk 0:03:59.9]} 28... Qxd4 {[%clk 0:01:50.5]} 29. Qxf7+
{[%clk 0:03:57.3]} 29... Kh8 {[%clk 0:01:46.7]} 30. Qxg7# {[%clk 0:03:57.2]} 1-0

[Event "Live Chess"]
[Site "Chess.com"]
[Date "2023.05.21"]
[Round "-"]
[White "domrobson"]
[Black "LanceMaster23"]
[Result "1-0"]
[WhiteElo "1793"]
[BlackElo "1959"]
[TimeControl "300"]
[EndTime "8:20:59 PDT"]
[Termination "domrobson won by checkmate"]

1. d4 {[%clk 0:04:58.5]} 1... Nf6 {[%clk 0:04:59.1]} 2. c4 {[%clk 0:04:57]} 2...
e6 {[%clk 0:04:57.5]} 3. Nf3 {[%clk 0:04:55.8]} 3... Bb4+ {[%clk 0:04:55.8]} 4.
Bd2 {[%clk 0:04:54.5]} 4... Bxd2+ {[%clk 0:04:54.7]} 5. Qxd2 {[%clk 0:04:52.8]}
5... c5 {[%clk 0:04:54.4]} 6. d5 {[%clk 0:04:50.4]} 6... d6 {[%clk 0:04:53.3]}
7. Nc3 {[%clk 0:04:48.2]} 7... e5 {[%clk 0:04:52.2]} 8. e4 {[%clk 0:04:46.5]}
8... Bg4 {[%clk 0:04:51.4]} 9. Be2 {[%clk 0:04:45.5]} 9... Nbd7 {[%clk
0:04:50.3]} 10. O-O {[%clk 0:04:44.2]} 10... O-O {[%clk 0:04:48.6]} 11. Ne1
{[%clk 0:04:43.1]} 11... Bxe2 {[%clk 0:04:43.7]} 12. Qxe2 {[%clk 0:04:40.6]}
12... Qe7 {[%clk 0:04:28.6]} 13. a4 {[%clk 0:04:38.6]} 13... a6 {[%clk
0:04:27.4]} 14. Nc2 {[%clk 0:04:32.9]} 14... Ne8 {[%clk 0:04:20.2]} 15. f3
{[%clk 0:04:31.1]} 15... f5 {[%clk 0:04:18.7]} 16. Ne3 {[%clk 0:04:29]} 16... f4
{[%clk 0:04:00.6]} 17. Nf5 {[%clk 0:04:25.8]} 17... Qg5 {[%clk 0:03:54.9]} 18.
h4 {[%clk 0:04:22]} 18... Qh5 {[%clk 0:03:41.6]} 19. g4 {[%clk 0:04:12.9]} 19...
fxg3 {[%clk 0:03:31.4]} 20. f4 {[%clk 0:04:06.8]} 20... Qxe2 {[%clk 0:03:23.5]}
21. Nxe2 {[%clk 0:04:05]} 21... exf4 {[%clk 0:02:58.2]} 22. Rxf4 {[%clk
0:04:00.5]} 22... Ne5 {[%clk 0:02:53.7]} 23. Ne7+ {[%clk 0:03:45.3]} 23... Kh8
{[%clk 0:02:39.8]} 24. Rxf8# {[%clk 0:03:43.7]} 1-0